fUST/lending_fUST_20250812
["ID","MTS","AMOUNT","RATE_DAILY","PERIOD"]
[378670421,1754952650832,-500.0,0.00019473,2]
[378670422,1754952650841,-500.0,0.00019473,2]
[378670423,1754952650850,-349.65332276,0.00019473,2]
[378670424,1754952650859,-340.52011149,0.00019473,2]
[378670425,1754952650868,-158.44868159,0.00019473,2]
[378670426,1754952650878,-158.46341349,0.00019473,2]
[378670427,1754952650887,-500.0,0.00019473,2]
[378670428,1754952650896,-500.0,0.00019473,2]
[378670429,1754952650906,-500.0,0.00019473,2]
[378670430,1754952650915,-261.45627301,0.00019473,2]
[378670431,1754952650924,-160.46559195,0.00019473,2]
[378670432,1754952650933,-158.46471794,0.00019473,2]
[378670433,1754952650942,-260.55026,0.00019473,2]
[378670434,1754952650951,-158.04855828,0.00019473,2]
[378670435,1754952650961,-500.0,0.00019473,2]
[378670436,1754952650970,-160.04917295,0.00019473,2]
[378670437,1754952650979,-159.45114521,0.00019473,2]
[378670438,1754952650988,-500.0,0.00019473,2]
[378670439,1754952650998,-158.46538666,0.00019473,2]
[378670440,1754952651007,-500.0,0.00019473,2]
[378670441,1754952651017,-500.0,0.00019473,2]
[378670442,1754952651027,-160.46192181,0.00019473,2]
[378670443,1754952651036,-160.17133691,0.00019473,2]
[378670444,1754952651045,-165.05050708,0.00019473,2]
[378670445,1754952651055,-158.46577498,0.00019473,2]
[378670446,1754952651064,-500.0,0.00019473,2]
[378670447,1754952651073,-338.07546911,0.00019473,2]
[378670448,1754952651082,-158.04855829,0.00019473,2]
[378670449,1754952651091,-158.12880838,0.00019473,2]
[378670450,1754952651101,-341.62190171,0.00019473,2]
[378670451,1754952651110,-500.0,0.00019473,2]
[378670452,1754952651127,-500.0,0.00019473,2]
[378670453,1754952651136,-500.0,0.00019473,2]
[378670454,1754952651145,-600.0,0.00019473,2]
[378670455,1754952651155,-158.46166641,0.00019473,2]
[378670456,1754952651164,-340.91787696,0.00019473,2]
[378670457,1754952651173,-160.06680905,0.00019473,2]
[378670458,1754952651182,-400.13434124,0.00019473,2]
[378670459,1754952651191,-157.46260862,0.00019473,2]
[378670460,1754952651201,-168.46954688,0.00019473,2]
[378670461,1754952651210,-340.09270154,0.00019473,2]
[378670462,1754952651219,-500.0,0.00019473,2]
[378670463,1754952651228,-248.49009127,0.00019473,2]
[378670464,1754952651238,-500.0,0.00019473,2]
[378670465,1754952651247,-500.0,0.00019473,2]
[378670466,1754952651256,-500.0,0.00019473,2]
[378670467,1754952651310,-500.0,0.00019473,2]
[378670468,1754952651319,-649.13665048,0.00019473,2]
[378670469,1754952651329,-500.0,0.00019473,2]
[378670470,1754952651338,-500.0,0.00019473,2]
[378670471,1754952651347,-500.0,0.00019473,2]
[378670472,1754952651356,-160.06638324,0.00019473,2]
[378670473,1754952651365,-500.0,0.00019473,2]
[378670474,1754952651374,-500.0,0.00019473,2]
[378670475,1754952651384,-500.0,0.00019473,2]
[378670476,1754952651393,-500.0,0.00019473,2]
[378670477,1754952651402,-500.0,0.00019473,2]
[378670478,1754952651411,-500.0,0.00019473,2]
[378670479,1754952651420,-165.91152342,0.00019473,2]
[378670480,1754952651429,-500.0,0.00019473,2]
[378670481,1754952651439,-500.0,0.00019473,2]
[378670482,1754952651449,-500.0,0.00019473,2]
[378670483,1754952651458,-216.82734154,0.00019473,2]
[378670484,1754952651467,-621.55254894,0.00019473,2]
[378670485,1754952651477,-500.0,0.00019473,2]
[378670486,1754952651486,-500.0,0.00019473,2]
[378670487,1754952651495,-500.78623683,0.00019473,2]
[378670488,1754952651505,-154.43239774,0.00019473,2]
[378670489,1754952651513,-500.0,0.00019473,2]
[378670490,1754952651523,-504.04152628,0.00019473,2]
[378670491,1754952651532,-500.0,0.00019473,2]
[378670492,1754952651541,-448.81982586,0.00019473,2]
[378670493,1754952651550,-173.54530953,0.00019473,2]
[378670494,1754952651559,-500.0,0.00019473,2]
[378670495,1754952651568,-168.72970159,0.00019473,2]
[378670496,1754952651577,-500.0,0.00019473,2]
[378670497,1754952651586,-500.0,0.00019473,2]
[378670498,1754952651595,-500.0,0.00019473,2]
[378670499,1754952651604,-521.33546473,0.00019473,2]
[378670500,1754952651613,-500.0,0.00019473,2]
[378670501,1754952651622,-445.11431374,0.00019473,2]
[378670502,1754952651631,-500.0,0.00019473,2]
[378670503,1754952651640,-500.0,0.00019473,2]
[378670504,1754952651649,-500.0,0.00019473,2]
[378670505,1754952651659,-500.0,0.00019473,2]
[378670506,1754952651668,-500.0,0.00019473,2]
[378670507,1754952651678,-500.0,0.00019473,2]
[378670508,1754952651687,-500.0,0.00019473,2]
[378670509,1754952651697,-500.0,0.00019473,2]
[378670510,1754952651707,-500.0,0.00019473,2]
[378670511,1754952651715,-500.0,0.00019473,2]
[378670512,1754952651725,-151.0,0.00019473,2]
[378670513,1754952651734,-151.0,0.00019473,2]
[378670514,1754952651743,-488.4,0.00019488,2]
[378670515,1754952651752,-1332.9015887,0.00019489,2]
[378670516,1754952651761,-151.0,0.000195,2]
[378670517,1754952651770,-151.0,0.000195,2]
[378670518,1754952651780,-1000.0,0.00019517,5]
[378670519,1754952651790,-160.0,0.00019585,2]
[378670520,1754952651800,-160.0,0.00019585,2]
[378670521,1754952651809,-215.4905783,0.00019585,2]
[378670522,1754952651818,-160.0,0.00019585,2]
[378670523,1754952651827,-417.15472785,0.00019585,2]
[378670524,1754952651836,-160.0,0.00019585,2]
[378670525,1754952651847,-160.0,0.00019585,2]
[378670526,1754952651859,-160.0,0.00019585,2]
[378670527,1754952651868,-160.0,0.00019585,2]
[378670528,1754952651879,-160.0,0.00019585,2]
[378670529,1754952651888,-527.9539256,0.00019585,2]
[378670530,1754952651898,-216.68257536,0.00019585,2]
[378670531,1754952651907,-231.9940742,0.00019585,2]
[378670532,1754952651916,-843.18994796,0.00019585,2]
[378670533,1754952651926,-461.69158338,0.00019585,2]
[378670534,1754952651935,-160.0,0.00019585,2]
[378670535,1754952651944,-151.0,0.00019585,2]
[378670536,1754952651955,-151.0,0.00019585,2]
[378670537,1754952651964,-151.0,0.00019585,2]
[378670538,1754952651973,-613.895363,0.00019585,2]
[378670539,1754952651982,-613.895363,0.00019585,2]
[378670540,1754952651991,-12671.21867243,0.00019585,2]
[378670541,1754952652000,-151.0,0.00019594,2]
[378670542,1754952652009,-151.0,0.000196,2]
[378670543,1754952652019,-151.0,0.000196,2]
[378670544,1754952652028,-488.4,0.00019622,2]
[378670545,1754952652037,-1332.9015887,0.00019626,2]
[378670546,1754952652047,-439.077632,0.00019667,15]
[378670547,1754952652056,-1864.0,0.00019678,2]
[378670548,1754952652065,-987.792,0.00019688,2]
[378670549,1754952652074,-636.0,0.00019688,2]
[378670550,1754952652083,-2151.0,0.00019688,2]
[378670551,1754952652092,-151.0,0.000197,2]
[378670552,1754952652102,-1300.0,0.00019712,2]
[378670553,1754952652111,-1000.0,0.00019721,2]
[378670554,1754952652121,-500.0,0.00019721,2]
[378670555,1754952652130,-1000.0,0.00019721,2]
[378670556,1754952652142,-1000.0,0.00019721,2]
[378670557,1754952652152,-1000.0,0.00019721,2]
[378670558,1754952652162,-1000.0,0.00019721,2]
[378670559,1754952652171,-1000.0,0.00019721,2]
[378670560,1754952652182,-151.0,0.00019721,2]
[378670561,1754952652191,-200.0,0.00019725,2]
[378670562,1754952652203,-151.0,0.00019725,2]
[378670563,1754952652212,-151.0,0.00019725,2]
[378670564,1754952652221,-151.0,0.00019725,2]
[378670565,1754952652230,-151.0,0.00019726,2]
[378670566,1754952652240,-151.0,0.00019726,2]
[378670567,1754952652250,-151.0,0.00019726,2]
[378670568,1754952652259,-151.0,0.00019726,2]
[378670569,1754952652270,-489.45452389,0.00019726,2]
[378670570,1754952652280,-151.0,0.00019726,2]
[378670571,1754952652294,-151.0,0.00019726,2]
[378670572,1754952652305,-151.0,0.00019726,2]
[378670573,1754952652315,-460.0,0.00019726,2]
[378670574,1754952652328,-460.0,0.00019726,2]
[378670575,1754952652337,-460.0,0.00019726,2]
[378670576,1754952652346,-151.0,0.00019726,2]
[378670577,1754952652355,-151.0,0.00019726,2]
[378670578,1754952652366,-460.0,0.00019726,2]
[378670579,1754952652375,-460.0,0.00019726,2]
[378670580,1754952652384,-168.37926051,0.00019726,2]
[378670581,1754952652393,-460.0,0.00019726,2]
[378670582,1754952652406,-1124.32,0.00019726,2]
[378670583,1754952652422,-460.0,0.00019726,2]
[378670584,1754952652432,-460.0,0.00019726,2]
[378670585,1754952652441,-460.0,0.00019726,2]
[378670586,1754952652451,-460.0,0.00019726,2]
[378670587,1754952652461,-151.0,0.00019726,2]
[378670588,1754952652470,-151.0,0.00019726,2]
[378670589,1754952652480,-702.76,0.00019726,2]
[378670590,1754952652489,-460.0,0.00019726,2]
[378670591,1754952652499,-416.09324694,0.00019726,2]
[378670592,1754952652508,-460.0,0.00019726,2]
[378670593,1754952652517,-669.72,0.00019726,2]
[378670594,1754952652526,-460.0,0.00019726,2]
[378670595,1754952652536,-604.41,0.00019726,2]
[378670596,1754952652545,-460.0,0.00019726,2]
[378670597,1754952652554,-484.78552915,0.00019726,2]
[378670598,1754952652564,-460.0,0.00019726,2]
[378670599,1754952652573,-460.0,0.00019726,2]
[378670600,1754952652583,-460.0,0.00019726,2]
[378670601,1754952652592,-460.0,0.00019726,2]
[378670602,1754952652601,-460.0,0.00019726,2]
[378670603,1754952652610,-460.0,0.00019726,2]
[378670604,1754952652619,-151.0,0.00019726,2]
[378670605,1754952652628,-460.0,0.00019726,2]
[378670606,1754952652638,-460.0,0.00019726,2]
[378670607,1754952652647,-460.0,0.00019726,2]
[378670608,1754952652656,-3984.186465,0.00019726,2]
[378670609,1754952652666,-3984.186465,0.00019726,2]
[378670610,1754952652675,-151.0,0.00019726,2]
[378670611,1754952652684,-151.0,0.00019726,2]
[378670612,1754952652693,-757.25,0.00019726,2]
[378670613,1754952652702,-460.0,0.00019726,2]
[378670614,1754952652711,-232.20659993,0.00019726,2]
[378670615,1754952652721,-465.6,0.00019726,2]
[378670616,1754952652733,-460.0,0.00019726,2]
[378670617,1754952652742,-460.0,0.00019726,2]
[378670618,1754952652752,-651.57,0.00019726,2]
[378670619,1754952652761,-852.92,0.00019726,2]
[378670620,1754952652771,-151.0,0.00019726,2]
[378670621,1754952652780,-460.0,0.00019726,2]
[378670622,1754952652789,-460.0,0.00019726,2]
[378670623,1754952652799,-460.0,0.00019726,2]
[378670624,1754952652809,-480.5,0.00019726,2]
[378670625,1754952652818,-460.0,0.00019726,2]
[378670626,1754952652828,-259.049617,0.00019726,2]
[378670627,1754952652837,-460.0,0.00019726,2]
[378670628,1754952652846,-482.37,0.00019726,2]
[378670629,1754952652855,-2715.86,0.00019726,2]
[378670630,1754952652864,-460.0,0.00019726,2]
[378670631,1754952652873,-460.0,0.00019726,2]
[378670632,1754952652882,-2965.77,0.00019726,2]
[378670633,1754952652892,-460.0,0.00019726,2]
[378670634,1754952652902,-151.0,0.00019726,2]
[378670635,1754952652911,-151.0,0.00019726,2]
[378670636,1754952652921,-151.0,0.00019726,2]
[378670637,1754952652930,-151.0,0.00019726,2]
[378670638,1754952652939,-570.59,0.00019726,2]
[378670639,1754952652949,-460.0,0.00019726,2]
[378670640,1754952652959,-460.0,0.00019726,2]
[378670641,1754952652967,-460.0,0.00019726,2]
[378670642,1754952652977,-460.0,0.00019726,2]
[378670643,1754952652987,-1012.14,0.00019726,2]
[378670644,1754952652996,-460.0,0.00019726,2]
[378670645,1754952653006,-298.73074238,0.00019726,2]
[378670646,1754952653015,-460.0,0.00019726,2]
[378670647,1754952653025,-460.0,0.00019726,2]
[378670648,1754952653035,-460.0,0.00019726,2]
[378670649,1754952653044,-460.0,0.00019726,2]
[378670650,1754952653053,-460.0,0.00019726,2]
[378670651,1754952653067,-580.22694274,0.00019726,2]
[378670652,1754952653077,-473.7047145,0.00019726,2]
[378670653,1754952653087,-460.0,0.00019726,2]
[378670654,1754952653096,-460.0,0.00019726,2]
[378670655,1754952653105,-189.091646,0.00019726,2]
[378670656,1754952653115,-483.7,0.00019726,2]
[378670657,1754952653126,-151.0,0.00019726,2]
[378670658,1754952653138,-151.0,0.00019726,2]
[378670659,1754952653149,-460.0,0.00019726,2]
[378670660,1754952653160,-460.0,0.00019726,2]
[378670661,1754952653170,-460.0,0.00019726,2]
[378670662,1754952653180,-1368.398445,0.00019726,2]
[378670663,1754952653189,-1368.398445,0.00019726,2]
[378670664,1754952653200,-439.077632,0.00019726,2]
[378670665,1754952653209,-1368.398445,0.00019726,2]
[378670666,1754952653218,-460.0,0.00019726,2]
[378670667,1754952653227,-1368.398445,0.00019726,2]
[378670668,1754952653237,-1089.14,0.00019726,2]
[378670669,1754952653246,-460.0,0.00019726,2]
[378670670,1754952653255,-493.33,0.00019726,2]
[378670671,1754952653264,-460.0,0.00019726,2]
[378670672,1754952653274,-538.96,0.00019726,2]
[378670673,1754952653283,-780.28,0.00019726,2]
[378670674,1754952653296,-1409.69,0.00019726,2]
[378670675,1754952653306,-542.1,0.00019726,2]
[378670676,1754952653315,-151.0,0.00019726,2]
[378670677,1754952653324,-151.0,0.00019726,2]
[378670678,1754952653333,-151.0,0.00019726,2]
[378670679,1754952653343,-151.0,0.00019726,2]
[378670680,1754952653352,-460.0,0.00019726,2]
[378670681,1754952653363,-460.0,0.00019726,2]
[378670682,1754952653372,-460.0,0.00019726,2]
[378670683,1754952653382,-351.27925314,0.00019726,2]
[378670684,1754952653392,-1174.7,0.00019726,2]
[378670685,1754952653402,-460.0,0.00019726,2]
[378670686,1754952653411,-460.0,0.00019726,2]
[378670687,1754952653421,-460.0,0.00019726,2]
[378670688,1754952653430,-460.0,0.00019726,2]
[378670689,1754952653439,-773.2,0.00019726,2]
[378670690,1754952653450,-460.0,0.00019726,2]
[378670691,1754952653459,-460.0,0.00019726,2]
[378670692,1754952653469,-1504.12,0.00019726,2]
[378670693,1754952653478,-939.81,0.00019726,2]
[378670694,1754952653487,-461.72507265,0.00019726,2]
[378670695,1754952653497,-460.0,0.00019726,2]
[378670696,1754952653507,-460.0,0.00019726,2]
[378670697,1754952653516,-214.929321,0.00019726,2]
[378670698,1754952653526,-214.929321,0.00019726,2]
[378670699,1754952653535,-460.0,0.00019726,2]
[378670700,1754952653545,-214.929321,0.00019726,2]
[378670701,1754952653554,-214.929321,0.00019726,2]
[378670702,1754952653564,-460.0,0.00019726,2]
[378670703,1754952653573,-462.31,0.00019726,2]
[378670704,1754952653582,-460.0,0.00019726,2]
[378670705,1754952653592,-460.0,0.00019726,2]
[378670706,1754952653601,-460.0,0.00019726,2]
[378670707,1754952653611,-460.0,0.00019726,2]
[378670708,1754952653621,-460.0,0.00019726,2]
[378670709,1754952653630,-523.94,0.00019726,2]
[378670710,1754952653640,-484.846207,0.00019726,2]
[378670711,1754952653649,-460.0,0.00019726,2]
[378670712,1754952653659,-862.62,0.00019726,2]
[378670713,1754952653668,-460.0,0.00019726,2]
[378670714,1754952653678,-460.0,0.00019726,2]
[378670715,1754952653688,-484.846207,0.00019726,2]
[378670716,1754952653697,-484.846207,0.00019726,2]
[378670717,1754952653706,-460.0,0.00019726,2]
[378670718,1754952653716,-1578.56,0.00019726,2]
[378670719,1754952653725,-466.29801671,0.00019726,2]
[378670720,1754952653735,-460.0,0.00019726,2]
[378670721,1754952653745,-460.0,0.00019726,2]
[378670722,1754952653754,-532.77418421,0.00019726,2]
[378670723,1754952653764,-460.0,0.00019726,2]
[378670724,1754952653774,-1603.78,0.00019726,2]
[378670725,1754952653783,-460.0,0.00019726,2]
[378670726,1754952653793,-460.0,0.00019726,2]
[378670727,1754952653803,-460.0,0.00019726,2]
[378670728,1754952653812,-460.0,0.00019726,2]
[378670729,1754952653822,-661.42,0.00019726,2]
[378670730,1754952653832,-151.0,0.00019726,2]
[378670731,1754952653842,-151.0,0.00019726,2]
[378670732,1754952653852,-151.0,0.00019726,2]
[378670733,1754952653861,-460.0,0.00019726,2]
[378670734,1754952653871,-460.0,0.00019726,2]
[378670735,1754952653881,-889.79,0.00019726,2]
[378670736,1754952653890,-460.0,0.00019726,2]
[378670737,1754952653900,-460.0,0.00019726,2]
[378670738,1754952653910,-460.0,0.00019726,2]
[378670739,1754952653920,-460.0,0.00019726,2]
[378670740,1754952653930,-460.0,0.00019726,2]
[378670741,1754952653940,-460.0,0.00019726,2]
[378670742,1754952653950,-460.0,0.00019726,2]
[378670743,1754952653960,-454.95354849,0.00019726,2]
[378670744,1754952653969,-460.0,0.00019726,2]
[378670745,1754952653979,-1010.16,0.00019726,2]
[378670746,1754952653989,-460.0,0.00019726,2]
[378670747,1754952653999,-979.17,0.00019726,2]
[378670748,1754952654009,-460.0,0.00019726,2]
[378670749,1754952654020,-460.0,0.00019726,2]
[378670750,1754952654030,-760.62,0.00019726,2]
[378670751,1754952654040,-222.09074,0.00019726,2]
[378670752,1754952654050,-222.09074,0.00019726,2]
[378670753,1754952654061,-222.09074,0.00019726,2]
[378670754,1754952654070,-151.0,0.00019726,2]
[378670755,1754952654079,-156.202268,0.00019726,2]
[378670756,1754952654089,-460.0,0.00019726,2]
[378670757,1754952654099,-222.09074,0.00019726,2]
[378670758,1754952654109,-460.0,0.00019726,2]
[378670759,1754952654120,-222.09074,0.00019726,2]
[378670760,1754952654130,-222.09074,0.00019726,2]
[378670761,1754952654140,-460.0,0.00019726,2]
[378670762,1754952654149,-796.59,0.00019726,2]
[378670763,1754952654159,-460.0,0.00019726,2]
[378670764,1754952654169,-1250.82,0.00019726,2]
[378670765,1754952654178,-580.43,0.00019726,2]
[378670766,1754952654188,-708.59,0.00019726,2]
[378670767,1754952654198,-1089.56,0.00019726,2]
[378670768,1754952654208,-576.71,0.00019726,2]
[378670769,1754952654217,-460.0,0.00019726,2]
[378670770,1754952654226,-460.0,0.00019726,2]
[378670771,1754952654236,-225.862578,0.00019726,2]
[378670772,1754952654245,-225.862578,0.00019726,2]
[378670773,1754952654255,-225.862578,0.00019726,2]
[378670774,1754952654265,-460.0,0.00019726,2]
[378670775,1754952654275,-404.996695,0.00019726,2]
[378670776,1754952654289,-404.996695,0.00019726,2]
[378670777,1754952654299,-404.996695,0.00019726,2]
[378670778,1754952654308,-225.862578,0.00019726,2]
[378670779,1754952654318,-225.862578,0.00019726,2]
[378670780,1754952654329,-460.0,0.00019726,2]
[378670781,1754952654340,-225.862578,0.00019726,2]
[378670782,1754952654350,-404.996695,0.00019726,2]
[378670783,1754952654360,-460.0,0.00019726,2]
[378670784,1754952654373,-404.996695,0.00019726,2]
[378670785,1754952654383,-404.996695,0.00019726,2]
[378670786,1754952654392,-668.07,0.00019726,2]
[378670787,1754952654402,-3655.57,0.00019726,2]
[378670788,1754952654412,-151.0,0.00019726,2]
[378670789,1754952654421,-151.0,0.00019726,2]
[378670790,1754952654431,-151.0,0.00019726,2]
[378670791,1754952654440,-460.0,0.00019726,2]
[378670792,1754952654451,-460.0,0.00019726,2]
[378670793,1754952654460,-151.0,0.00019726,2]
[378670794,1754952654470,-151.0,0.00019726,2]
[378670795,1754952654480,-151.0,0.00019726,2]
[378670796,1754952654489,-460.0,0.00019726,2]
[378670797,1754952654499,-460.0,0.00019726,2]
[378670798,1754952654508,-151.0,0.00019726,2]
[378670799,1754952654518,-151.0,0.00019726,2]
[378670800,1754952654528,-151.0,0.00019726,2]
[378670801,1754952654537,-460.0,0.00019726,2]
[378670802,1754952654547,-151.0,0.00019726,2]
[378670803,1754952654556,-151.0,0.00019726,2]
[378670804,1754952654566,-151.0,0.00019726,2]
[378670805,1754952654576,-460.0,0.00019726,2]
[378670806,1754952654585,-375.409489,0.00019726,2]
[378670807,1754952654595,-375.409489,0.00019726,2]
[378670808,1754952654604,-372.7623793,0.00019726,2]
[378670809,1754952655778,-460.0,0.00019178,2]
[378670810,1754952655788,-2.6471097,0.00019726,2]
[378670811,1754952655797,-460.0,0.00019726,2]
[378670812,1754952655807,-460.0,0.00019726,2]
[378670813,1754952655816,-151.0,0.00019726,2]
[378670814,1754952655825,-460.0,0.00019726,2]
[378670815,1754952655834,-151.0,0.00019726,2]
[378670816,1754952655843,-375.409489,0.00019726,2]
[378670817,1754952655853,-375.409489,0.00019726,2]
[378670818,1754952655862,-460.0,0.00019726,2]
[378670819,1754952655871,-375.409489,0.00019726,2]
[378670820,1754952655881,-460.0,0.00019726,2]
[378670821,1754952655890,-12120.95,0.00019726,2]
[378670822,1754952655900,-5845.93,0.00019726,2]
[378670823,1754952655909,-460.0,0.00019726,2]
[378670824,1754952655918,-1870.19,0.00019726,2]
[378670825,1754952655927,-460.0,0.00019726,2]
[378670826,1754952655936,-460.0,0.00019726,2]
[378670827,1754952655945,-151.0,0.00019726,2]
[378670828,1754952655954,-151.0,0.00019726,2]
[378670829,1754952655964,-641.16,0.00019726,2]
[378670830,1754952655973,-151.0,0.00019726,2]
[378670831,1754952655982,-460.0,0.00019726,2]
[378670832,1754952655991,-460.0,0.00019726,2]
[378670833,1754952656000,-1295.12,0.00019726,2]
[378670834,1754952656010,-460.0,0.00019726,2]
[378670835,1754952656020,-460.0,0.00019726,2]
[378670836,1754952656029,-460.0,0.00019726,2]
[378670837,1754952656039,-151.0,0.00019726,2]
[378670838,1754952656049,-151.0,0.00019726,2]
[378670839,1754952656058,-151.0,0.00019726,2]
[378670840,1754952656068,-1096.97,0.00019726,2]
[378670841,1754952656077,-460.0,0.00019726,2]
[378670842,1754952656086,-460.0,0.00019726,2]
[378670843,1754952656096,-460.0,0.00019726,2]
[378670844,1754952656105,-460.0,0.00019726,2]
[378670845,1754952656114,-460.0,0.00019726,2]
[378670846,1754952656130,-481.35,0.00019726,2]
[378670847,1754952656139,-195.98721945,0.00019726,2]
[378670848,1754952656150,-460.0,0.00019726,2]
[378670849,1754952656159,-460.0,0.00019726,2]
[378670850,1754952656168,-460.0,0.00019726,2]
[378670851,1754952656178,-460.0,0.00019726,2]
[378670852,1754952656189,-460.0,0.00019726,2]
[378670853,1754952656198,-460.0,0.00019726,2]
[378670854,1754952656207,-866.3,0.00019726,2]
[378670855,1754952656217,-460.0,0.00019726,2]
[378670856,1754952656226,-460.0,0.00019726,2]
[378670857,1754952656237,-460.0,0.00019726,2]
[378670858,1754952656247,-541.02,0.00019726,2]
[378670859,1754952656256,-460.0,0.00019726,2]
[378670860,1754952656265,-460.0,0.00019726,2]
[378670861,1754952656275,-460.0,0.00019726,2]
[378670862,1754952656287,-1222.63,0.00019726,2]
[378670863,1754952656296,-460.0,0.00019726,2]
[378670864,1754952656305,-460.0,0.00019726,2]
[378670865,1754952656315,-3018.74,0.00019726,2]
[378670866,1754952656324,-489.11,0.00019726,2]
[378670867,1754952656334,-460.0,0.00019726,2]
[378670868,1754952656344,-714.43,0.00019726,2]
[378670869,1754952656354,-460.0,0.00019726,2]
[378670870,1754952656365,-460.0,0.00019726,2]
[378670871,1754952656375,-1613.89,0.00019726,2]
[378670872,1754952656384,-460.0,0.00019726,2]
[378670873,1754952656393,-460.0,0.00019726,2]
[378670874,1754952656403,-460.0,0.00019726,2]
[378670875,1754952656412,-1132.53,0.00019726,2]
[378670876,1754952656422,-2882.58,0.00019726,2]
[378670877,1754952656431,-460.0,0.00019726,2]
[378670878,1754952656440,-2436.68,0.00019726,2]
[378670879,1754952656449,-460.0,0.00019726,2]
[378670880,1754952656459,-460.0,0.00019726,2]
[378670881,1754952656468,-460.0,0.00019726,2]
[378670882,1754952656478,-784.24,0.00019726,2]
[378670883,1754952656487,-1071.69,0.00019726,2]
[378670884,1754952656497,-661.42,0.00019726,2]
[378670885,1754952656507,-1739.92,0.00019726,2]
[378670886,1754952656516,-153.466445,0.00019726,2]
[378670887,1754952656526,-460.0,0.00019726,2]
[378670888,1754952656535,-463.03,0.00019726,2]
[378670889,1754952656544,-2185.27,0.00019726,2]
[378670890,1754952656554,-232.5585651,0.00019726,2]
[378670891,1754952656563,-460.0,0.00019726,2]
[378670892,1754952656573,-1675.75188899,0.00019726,2]
[378670893,1754952656594,-568.33811101,0.00019726,2]
[378670894,1754952656603,-460.0,0.00019726,2]
[378670895,1754952656612,-460.0,0.00019726,2]
[378670896,1754952656622,-498.50960345,0.00019726,2]
[378670897,1754952656631,-1260.3,0.00019726,2]
[378670898,1754952656640,-524.312075,0.00019726,2]
[378670899,1754952656650,-460.0,0.00019726,2]
[378670900,1754952656659,-564.94,0.00019726,2]
[378670901,1754952656668,-460.0,0.00019726,2]
[378670902,1754952656677,-460.0,0.00019726,2]
[378670903,1754952656687,-460.0,0.00019726,2]
[378670904,1754952656696,-1233.84,0.00019726,2]
[378670905,1754952656705,-460.0,0.00019726,2]
[378670906,1754952656714,-1052.49,0.00019726,2]
[378670907,1754952656723,-1529.46,0.00019726,2]
[378670908,1754952656733,-460.0,0.00019726,2]
[378670909,1754952656742,-460.0,0.00019726,2]
[378670910,1754952656751,-460.0,0.00019726,2]
[378670911,1754952656760,-1968.08,0.00019726,2]
[378670912,1754952656770,-503.95,0.00019726,2]
[378670913,1754952656779,-460.0,0.00019726,2]
[378670914,1754952656788,-460.0,0.00019726,2]
[378670915,1754952656798,-460.0,0.00019726,2]
[378670916,1754952656807,-944.17,0.00019726,2]
[378670917,1754952656816,-4642.88,0.00019726,2]
[378670918,1754952656825,-460.0,0.00019726,2]
[378670919,1754952656834,-460.0,0.00019726,2]
[378670920,1754952656844,-460.0,0.00019726,2]